fUSD/lending_fUSD_20250916
["ID","MTS","AMOUNT","RATE_DAILY","PERIOD"]
[385773591,1758030695122,-400.0,0.00030684,6]
[385773592,1758030695131,-424.51,0.00030684,6]
[385773593,1758030695141,-400.0,0.00030684,6]
[385773594,1758030695151,-1504.81,0.00030684,6]
[385773595,1758030695160,-400.0,0.00030684,6]
[385773596,1758030695171,-400.0,0.00030684,6]
[385773597,1758030695180,-967.93,0.00030684,6]
[385773598,1758030695190,-400.0,0.00030684,6]
[385773599,1758030695199,-400.0,0.00030684,6]
[385773600,1758030695209,-400.0,0.00030684,6]
[385773601,1758030695219,-400.0,0.00030684,6]
[385773602,1758030695228,-375.04152894,0.00030684,6]
[385773603,1758030695243,-111.98847106,0.00030684,6]
[385773604,1758030695252,-400.0,0.00030684,6]
[385773605,1758030695262,-400.0,0.00030684,6]
[385773606,1758030695272,-402.46279088,0.00030684,6]
[385773607,1758030695281,-347.44765748,0.00030684,6]
[385773608,1758030695316,-400.0,0.0003041,6]
[385773609,1758030695325,-102.82234252,0.00030684,6]
[385773610,1758030695335,-318.91517748,0.00030684,6]
[385773611,1758030696070,-155.19377924,0.00025583,3]
[385773612,1758030696080,-152.0,0.00025583,3]
[385773613,1758030696089,-290.045009,0.0002687,7]
[385773614,1758030696098,-400.0,0.00030136,6]
[385773615,1758030696107,-400.0,0.00030136,6]
[385773616,1758030696119,-400.0,0.0003041,6]
[385773617,1758030696128,-400.0,0.0003041,6]
[385773618,1758030696138,-291.60482252,0.00030684,6]
[385773619,1758030696148,-400.0,0.00030684,6]
[385773620,1758030696158,-400.0,0.00030684,6]
[385773621,1758030696167,-400.0,0.00030684,6]
[385773622,1758030696176,-400.0,0.00030684,6]
[385773623,1758030696186,-400.0,0.00030684,6]
[385773624,1758030696195,-1142.34,0.00030684,6]
[385773625,1758030696205,-675.11,0.00030684,6]
[385773626,1758030696215,-400.0,0.00030684,6]
[385773627,1758030696225,-400.0,0.00030684,6]
[385773628,1758030696234,-400.0,0.00030684,6]
[385773629,1758030696244,-1186.41,0.00030684,6]
[385773630,1758030696253,-741.03,0.00030684,6]
[385773631,1758030696262,-400.87393306,0.00030684,6]
[385773632,1758030696272,-400.0,0.00030684,6]
[385773633,1758030696281,-400.0,0.00030684,6]
[385773634,1758030696291,-400.0,0.00030684,6]
[385773635,1758030696301,-679.66,0.00030684,6]
[385773636,1758030696310,-1060.26,0.00030684,6]
[385773637,1758030696320,-601.84,0.00030684,6]
[385773638,1758030696329,-582.68,0.00030684,6]
[385773639,1758030696424,-400.0,0.00030684,6]
[385773640,1758030696437,-400.0,0.00030684,6]
[385773641,1758030696447,-400.0,0.00030684,6]
[385773642,1758030696456,-400.0,0.00030684,6]
[385773643,1758030696466,-521.79,0.00030684,6]
[385773644,1758030696475,-679.48,0.00030684,6]
[385773645,1758030696485,-475.17,0.00030684,6]
[385773646,1758030696494,-400.0,0.00030684,6]
[385773647,1758030696503,-2829.34,0.00030684,6]
[385773648,1758030696513,-400.0,0.00030684,6]
[385773649,1758030696522,-400.0,0.00030684,6]
[385773650,1758030696531,-400.0,0.00030684,6]
[385773651,1758030696540,-400.0,0.00030684,6]
[385773652,1758030696549,-415.32,0.00030684,6]
[385773653,1758030696558,-400.0,0.00030684,6]
[385773654,1758030696568,-1230.92,0.00030684,6]
[385773655,1758030696577,-400.0,0.00030684,6]
[385773656,1758030696586,-400.0,0.00030684,6]
[385773657,1758030696596,-859.59,0.00030684,6]
[385773658,1758030696605,-938.44,0.00030684,6]
[385773659,1758030696616,-400.0,0.00030684,6]
[385773660,1758030696626,-400.0,0.00030684,6]
[385773661,1758030696635,-400.0,0.00030684,6]
[385773662,1758030696645,-718.87,0.00030684,6]
[385773663,1758030696654,-589.52,0.00030684,6]
[385773664,1758030696664,-834.32,0.00030684,6]
[385773665,1758030696673,-1036.52,0.00030684,6]
[385773666,1758030696682,-400.0,0.00030684,6]
[385773667,1758030696691,-662.91,0.00030684,6]
[385773668,1758030696701,-400.0,0.00030684,6]
[385773669,1758030696710,-500.0,0.00030684,2]
[385773670,1758030696719,-478.98,0.00030684,6]
[385773671,1758030696728,-400.0,0.00030684,6]
[385773672,1758030696738,-400.0,0.00030684,6]
[385773673,1758030696747,-400.0,0.00030684,6]
[385773674,1758030696755,-471.62,0.00030684,6]
[385773675,1758030696765,-400.0,0.00030684,6]
[385773676,1758030696775,-400.0,0.00030684,6]
[385773677,1758030696784,-400.0,0.00030684,6]
[385773678,1758030696793,-547.21,0.00030684,6]
[385773679,1758030696802,-636.54,0.00030684,6]
[385773680,1758030696811,-400.0,0.00030684,6]
[385773681,1758030696821,-1485.81,0.00030684,6]
[385773682,1758030696830,-400.0,0.00030684,6]
[385773683,1758030696840,-840.26,0.00030684,6]
[385773684,1758030696850,-400.0,0.00030684,6]
[385773685,1758030696859,-300.0,0.00030684,6]
[385773686,1758030696869,-400.0,0.00030684,6]
[385773687,1758030696878,-704.17,0.00030684,6]
[385773688,1758030696887,-469.77254341,0.00030684,6]
[385773689,1758030696897,-400.0,0.00030684,6]
[385773690,1758030696907,-1126.57,0.00030684,6]
[385773691,1758030696917,-954.22,0.00030684,6]
[385773692,1758030696927,-400.0,0.00030684,6]
[385773693,1758030696936,-404.13274892,0.00030684,6]
[385773694,1758030696945,-968.13,0.00030684,6]
[385773695,1758030696955,-400.0,0.00030684,6]
[385773696,1758030696964,-400.0,0.00030684,6]
[385773697,1758030696974,-400.0,0.00030684,6]
[385773698,1758030696986,-400.0,0.00030684,6]
[385773699,1758030696996,-554.6,0.00030684,6]
[385773700,1758030697005,-400.0,0.00030684,6]
[385773701,1758030697015,-400.0,0.00030684,6]
[385773702,1758030697024,-1220.75,0.00030684,6]
[385773703,1758030697035,-403.0787974,0.00030684,6]
[385773704,1758030697049,-744.62,0.00030684,6]
[385773705,1758030697067,-400.0,0.00030684,6]
[385773706,1758030697076,-845.16,0.00030684,6]
[385773707,1758030697087,-458.66,0.00030684,6]
[385773708,1758030697100,-400.0,0.00030684,6]
[385773709,1758030697110,-407.72186663,0.00030684,6]
[385773710,1758030697120,-421.02,0.00030684,6]
[385773711,1758030697129,-423.58,0.00030684,6]
[385773712,1758030697139,-400.0,0.00030684,6]
[385773713,1758030697148,-400.0,0.00030684,6]
[385773714,1758030697157,-400.0,0.00030684,6]
[385773715,1758030697166,-2204.67,0.00030684,6]
[385773716,1758030697176,-400.0,0.00030684,6]
[385773717,1758030697186,-598.99,0.00030684,6]
[385773718,1758030697195,-452.6,0.00030684,6]
[385773719,1758030697205,-400.0,0.00030684,6]
[385773720,1758030697214,-400.0,0.00030684,6]
[385773721,1758030697223,-412.79,0.00030684,6]
[385773722,1758030697233,-562.96,0.00030684,6]
[385773723,1758030697243,-634.15,0.00030684,6]
[385773724,1758030697254,-400.0,0.00030684,6]
[385773725,1758030697263,-682.63,0.00030684,6]
[385773726,1758030697273,-595.96,0.00030684,6]
[385773727,1758030697282,-618.11,0.00030684,6]
[385773728,1758030697291,-400.0,0.00030684,6]
[385773729,1758030697300,-400.0,0.00030684,6]
[385773730,1758030697309,-402.39255546,0.00030684,6]
[385773731,1758030697319,-400.0,0.00030684,6]
[385773732,1758030697328,-400.0,0.00030684,6]
[385773733,1758030697337,-865.38,0.00030684,6]
[385773734,1758030697346,-400.0,0.00030684,6]
[385773735,1758030697355,-639.83,0.00030684,6]
[385773736,1758030697364,-499.48,0.00030684,6]
[385773737,1758030697373,-400.0,0.00030684,6]
[385773738,1758030697383,-400.0,0.00030684,6]
[385773739,1758030697392,-449.52,0.00030684,6]
[385773740,1758030697401,-405.43826033,0.00030684,6]
[385773741,1758030697410,-400.0,0.00030684,6]
[385773742,1758030697419,-400.0,0.00030684,6]
[385773743,1758030697428,-400.0,0.00030684,6]
[385773744,1758030697438,-400.0,0.00030684,6]
[385773745,1758030697447,-1087.0,0.00030684,6]
[385773746,1758030697456,-400.0,0.00030684,6]
[385773747,1758030697466,-400.0,0.00030684,6]
[385773748,1758030697475,-400.0,0.00030684,6]
[385773749,1758030697485,-492.05916627,0.00030684,6]
[385773750,1758030697495,-1915.8,0.00030684,6]
[385773751,1758030697504,-400.0,0.00030684,6]
[385773752,1758030697514,-400.0,0.00030684,6]
[385773753,1758030697525,-400.0,0.00030684,6]
[385773754,1758030697534,-3072.83,0.00030684,6]
[385773755,1758030697544,-400.0,0.00030684,6]
[385773756,1758030697554,-415.83234034,0.00030684,6]
[385773757,1758030697563,-1335.64,0.00030684,6]
[385773758,1758030697572,-428.02,0.00030684,6]
[385773759,1758030697582,-1656.96,0.00030684,6]
[385773760,1758030697591,-400.0,0.00030684,6]
[385773761,1758030697600,-400.0,0.00030684,6]
[385773762,1758030697609,-400.0,0.00030684,6]
[385773763,1758030697621,-618.88,0.00030684,6]
[385773764,1758030697630,-400.0,0.00030684,6]
[385773765,1758030697640,-434.23417712,0.00030684,6]
[385773766,1758030697667,-72.16582288,0.00030684,6]
[385773767,1758030697677,-400.0,0.00030684,6]
[385773768,1758030697686,-400.0,0.00030684,6]
[385773769,1758030697695,-418.35,0.00030684,6]
[385773770,1758030697704,-400.0,0.00030684,6]
[385773771,1758030697714,-1044.0,0.00030684,6]
[385773772,1758030697724,-319.47146294,0.00030684,6]
[385773773,1758030697795,-152.0,0.00025583,3]
[385773774,1758030697806,-80.52853706,0.00030684,6]
[385773775,1758030697816,-177.35574195,0.00030684,6]
[385773776,1758030698051,-473.7728704,0.00030684,6]
[385773777,1758030698732,-152.0,0.00025583,3]
[385773778,1758030698742,-152.0,0.00025583,3]
[385773779,1758030698751,-152.0,0.00025583,3]
[385773780,1758030698761,-108.21396507,0.00025583,3]
[385773781,1758030698772,-43.78603493,0.00025583,3]
[385773782,1758030698781,-400.0,0.00030136,6]
[385773783,1758030698790,-403.14462339,0.00030136,6]
[385773784,1758030698799,-400.0,0.0003041,6]
[385773785,1758030698809,-60.52138765,0.00030684,6]
[385773786,1758030698819,-400.0,0.00030684,6]
[385773787,1758030698828,-400.0,0.00030684,6]
[385773788,1758030698838,-433.97,0.00030684,6]
[385773789,1758030698848,-400.0,0.00030684,6]
[385773790,1758030698858,-400.0,0.00030684,6]
[385773791,1758030698868,-128.67795403,0.00030684,6]
[385773792,1758030698891,-370.39282668,0.00030684,6]
[385773793,1758030698900,-400.0,0.00030684,6]
[385773794,1758030698909,-47.04578941,0.00030684,6]
[385773795,1758030698921,-352.95421059,0.00030684,6]
[385773796,1758030698930,-400.0,0.00030684,6]
[385773797,1758030698939,-4649.21,0.00030684,6]
[385773798,1758030698950,-400.0,0.00030684,6]
[385773799,1758030698961,-400.0,0.00030684,6]
[385773800,1758030698970,-400.0,0.00030684,6]
[385773801,1758030698979,-461.66,0.00030684,6]
[385773802,1758030698992,-405.01534344,0.00030684,6]
[385773803,1758030699001,-404.20015866,0.00030684,6]
[385773804,1758030699011,-376.99658254,0.00030684,6]
[385773805,1758030699023,-23.00341746,0.00030684,6]
[385773806,1758030699032,-400.0,0.00030684,6]
[385773807,1758030699042,-400.0,0.00030684,6]
[385773808,1758030699051,-368.49658254,0.00030684,6]
[385773813,1758030895267,2960.16465359,0.00030137,120]
[385773814,1758030914357,155.79813966,0.00030137,120]
[385773824,1758031019572,500.0,0.00013699,2]
[385773835,1758031125486,218.72,0.0001347,2]
[385773836,1758031125733,218.72,0.00014178,2]
[385773837,1758031125941,218.72,0.00014887,2]
[385773838,1758031126173,218.72,0.00015596,2]
[385773839,1758031126397,218.72,0.00016305,2]
[385773840,1758031126649,218.72,0.00017014,2]
[385773841,1758031126867,218.72,0.00017723,2]
[385773842,1758031127182,218.72,0.00018432,2]
[385773843,1758031127404,218.72,0.00019141,2]
[385773849,1758031264898,189.6,0.00025564,120]
[385773850,1758031266225,189.6,0.00028759,120]
[385773887,1758031831849,-218.72,0.0001985,2]
[385773888,1758031831859,-87.90157989,0.00019953,2]
[385773889,1758031831875,-262.68592797,0.00019953,2]
[385773890,1758031831913,-149.41249214,0.00019953,2]
[385773891,1758031831923,-218.72,0.00020559,2]
[385773892,1758031831933,-218.72,0.00021268,2]
[385773893,1758031831943,-4.71455234,0.00021834,2]
[385773894,1758031831955,-667.89,0.00021834,2]
[385773895,1758031831967,-385.25731799,0.00021834,2]
[385773896,1758031831979,-142.13812967,0.00021834,2]
[385773897,1758031831988,-300.0,0.00021835,2]
[385773898,1758031831998,-195.0,0.00021835,2]
[385773899,1758031832008,-250.0,0.00021835,2]
[385773900,1758031832018,-296.47418892,0.00021835,2]
[385773901,1758031832046,-3.52581108,0.00021835,2]
[385773902,1758031832057,-218.72,0.00021977,2]
[385773903,1758031832067,-218.72,0.00022686,2]
[385773904,1758031832077,-278.44591757,0.0002332,3]
[385773905,1758031832106,-387.55408243,0.0002332,3]
[385773906,1758031832117,-218.72,0.00023395,2]
[385773907,1758031832127,-300.0,0.00023452,2]
[385773908,1758031832137,-3007.82875494,0.00023453,2]
[385773909,1758031832147,-267.46074303,0.00023453,2]
[385773910,1758031832156,-9211.34798985,0.00023453,2]
[385773911,1758031832166,-200.0,0.00023491,2]
[385773912,1758031832176,-9552.16786547,0.00023508,2]
[385773913,1758031832185,-216.41873779,0.00023562,2]
[385773914,1758031832195,-173.35990421,0.00023562,2]
[385773915,1758031832205,-7897.63316769,0.00023563,2]
[385773916,1758031832218,-274.41337209,0.00023563,2]
[385773917,1758031832230,-722.9285624,0.00023563,2]
[385773918,1758031832242,-1010.62297432,0.00023563,2]
[385773919,1758031832252,-906.67329537,0.00023618,2]
[385773920,1758031832264,-547.64931883,0.00023618,2]
[385773921,1758031832279,-5746.5,0.00023618,2]
[385773922,1758031832291,-2886.01060558,0.00023618,2]
[385773923,1758031832303,-185.27198555,0.00023618,2]
[385773924,1758031832313,-1505.43164089,0.00023673,2]
[385773925,1758031832325,-380.15953325,0.00023673,2]
[385773926,1758031832337,-1019.52978662,0.00023673,2]
[385773927,1758031832349,-2547.61520763,0.00023673,2]
[385773932,1758031832950,-2711.2609667,0.00023673,2]
[385773933,1758031833001,-383.10112793,0.00023673,2]
[385773934,1758031839970,-899.11315258,0.00023673,2]
[385773935,1758031840028,-625.34,0.00023673,2]
[385774217,1758031842929,-580.62168232,0.00023673,2]
[385774219,1758031842938,-11046.30350255,0.00023728,2]
[385774221,1758031842948,-10035.48599962,0.00023783,2]
[385774223,1758031842958,-314.0,0.00023842,2]
[385774225,1758031842967,-200.0,0.00023861,2]
[385774227,1758031842976,-500.0,0.00024079,2]
[385774229,1758031842986,-150.0,0.00024098,2]
[385774231,1758031842995,-218.72,0.00024104,2]
[385774233,1758031843005,-1780.8,0.00024154,2]
[385774235,1758031843014,-854.80176529,0.00024176,2]
[385774237,1758031843023,-4072.91,0.00024199,2]
[385774239,1758031843033,-1942.05,0.00024317,2]
[385774240,1758031843042,-183.51,0.00024658,2]
[385774242,1758031843051,-168.0,0.00024699,2]
[385774244,1758031843060,-171.73,0.00024748,2]
[385774246,1758031843070,-168.0,0.00024758,2]
[385774248,1758031843079,-629.18368372,0.000248,2]
[385774251,1758031843089,-213.1401216,0.00024809,2]
[385774252,1758031843098,-160.0,0.0002481,2]
[385774254,1758031843107,-218.72,0.00024812,2]
[385774257,1758031843116,-277.35679052,0.00024822,2]
[385774259,1758031843128,-168.0,0.00024827,2]
[385774261,1758031843137,-160.0,0.00024881,2]
[385774263,1758031843146,-515.95536276,0.00024881,2]
[385774265,1758031843156,-160.0,0.00024881,2]
[385774267,1758031843165,-151.0,0.00024882,2]
[385774268,1758031843175,-2322.44557547,0.00024882,2]
[385774271,1758031843184,-151.0,0.00024882,2]
[385774273,1758031843194,-151.0,0.00024882,2]
[385774275,1758031843202,-322.6107,0.00024882,2]
[385774277,1758031843212,-151.0,0.00024882,2]
[385774280,1758031843221,-151.0,0.00024882,2]
[385774281,1758031843230,-151.0,0.00024882,2]
[385774283,1758031843240,-151.0,0.00024882,2]
[385774285,1758031843249,-151.0,0.00024882,2]
[385774288,1758031843257,-600.0,0.00024882,2]
[385774290,1758031843267,-175.71006843,0.00024882,2]
[385774291,1758031843276,-151.0,0.00024882,2]
[385774293,1758031843285,-151.0,0.00024882,2]
[385774295,1758031843294,-151.0,0.00024882,2]
[385774297,1758031843303,-151.0,0.00024882,2]
[385774299,1758031843312,-1000.0,0.00024882,2]
[385774301,1758031843322,-151.0,0.00024882,2]
[385774303,1758031843331,-1000.0,0.00024882,2]
[385774304,1758031843340,-151.0,0.00024882,2]
[385774306,1758031843349,-500.0,0.00024882,2]
[385774308,1758031843358,-151.0,0.00024882,2]
[385774310,1758031843367,-286.68600503,0.00024882,2]
[385774312,1758031843380,-1000.0,0.00024882,2]
[385774313,1758031843389,-151.0,0.00024882,2]
[385774315,1758031843398,-151.0,0.00024882,2]
[385774317,1758031843407,-500.0,0.00024882,2]
[385774319,1758031843417,-151.0,0.00024882,2]
[385774320,1758031843426,-151.0,0.00024882,2]
[385774321,1758031843435,-1000.0,0.00024882,2]
[385774322,1758031843444,-500.0,0.00024882,2]
[385774324,1758031843454,-151.0,0.00024882,2]
[385774326,1758031843463,-151.0,0.00024882,2]
[385774328,1758031843473,-1000.0,0.00024882,2]
[385774330,1758031843482,-256.10128232,0.00024882,2]
[385774332,1758031843491,-500.0,0.00024882,2]
[385774333,1758031843500,-151.0,0.00024882,2]
[385774335,1758031843509,-1000.0,0.00024882,2]
[385774336,1758031843519,-151.0,0.00024882,2]
[385774337,1758031843528,-500.0,0.00024882,2]
[385774338,1758031843542,-151.0,0.00024882,2]
[385774339,1758031843552,-500.0,0.00024882,2]
[385774340,1758031843561,-1000.0,0.00024882,2]
[385774341,1758031843571,-151.0,0.00024882,2]
[385774343,1758031843580,-151.0,0.00024882,2]
[385774344,1758031843589,-500.0,0.00024882,2]
[385774345,1758031843598,-151.0,0.00024882,2]
[385774346,1758031843607,-1000.0,0.00024882,2]
[385774347,1758031843617,-151.0,0.00024882,2]
[385774348,1758031843632,-500.0,0.00024882,2]
[385774349,1758031843642,-1000.0,0.00024882,2]
[385774350,1758031843651,-151.0,0.00024882,2]
[385774351,1758031843661,-151.0,0.00024882,2]
[385774352,1758031843671,-321.04118707,0.00024882,2]
[385774353,1758031843681,-1000.0,0.00024882,2]
[385774354,1758031843691,-151.0,0.00024882,2]
[385774355,1758031843700,-151.0,0.00024882,2]
[385774356,1758031843710,-993.36592964,0.00024882,2]
[385774357,1758031843720,-151.0,0.00024882,2]
[385774358,1758031843729,-200.0,0.00024882,2]
[385774359,1758031843739,-165.41764307,0.00024882,2]
[385774360,1758031843748,-151.0,0.00024882,2]
[385774361,1758031843758,-1000.0,0.00024882,2]
[385774362,1758031843767,-1000.0,0.00024882,2]
[385774363,1758031843777,-1000.0,0.00024882,2]
[385774364,1758031843786,-263.46271016,0.00024882,2]
[385774365,1758031843795,-160.0,0.00024882,2]
[385774366,1758031843804,-500.0,0.00024882,2]
[385774367,1758031843813,-500.0,0.00024882,2]
[385774368,1758031843822,-500.0,0.00024882,2]
[385774369,1758031843832,-500.0,0.00024882,2]
[385774370,1758031843842,-500.0,0.00024882,2]
[385774371,1758031843853,-500.0,0.00024882,2]
[385774372,1758031843862,-261.23060996,0.00024882,2]
[385774373,1758031843875,-500.0,0.00024882,2]
[385774374,1758031843885,-500.0,0.00024882,2]
[385774375,1758031843894,-151.0,0.00024882,2]
[385774376,1758031843903,-500.0,0.00024882,2]
[385774377,1758031843913,-151.0,0.00024882,2]
[385774378,1758031843923,-500.0,0.00024882,2]
[385774379,1758031843932,-500.0,0.00024882,2]
[385774380,1758031843941,-500.0,0.00024882,2]
[385774381,1758031843951,-151.0,0.00024882,2]
[385774382,1758031843962,-500.0,0.00024882,2]
[385774383,1758031843972,-500.0,0.00024882,2]
[385774384,1758031843984,-151.0,0.00024882,2]
[385774385,1758031843994,-648.38796932,0.00024882,2]
[385774386,1758031844003,-500.0,0.00024882,2]
[385774387,1758031844013,-151.0,0.00024882,2]
[385774388,1758031844022,-500.0,0.00024882,2]
[385774389,1758031844032,-151.0,0.00024882,2]
[385774390,1758031844041,-574.30331328,0.00024882,2]
[385774391,1758031844051,-163.8815663,0.00024882,2]
[385774392,1758031844072,-500.0,0.00024882,2]
[385774393,1758031844082,-500.0,0.00024882,2]
[385774394,1758031844091,-500.0,0.00024882,2]
[385774395,1758031844101,-500.0,0.00024882,2]
[385774396,1758031844110,-500.0,0.00024882,2]
[385774398,1758031844122,-500.0,0.00024882,2]
[385774400,1758031844131,-500.0,0.00024882,2]
[385774402,1758031844140,-500.0,0.00024882,2]
[385774403,1758031844149,-500.0,0.00024882,2]
[385774404,1758031844159,-500.0,0.00024882,2]
[385774405,1758031844168,-500.0,0.00024882,2]
[385774406,1758031844177,-151.0,0.00024882,2]
[385774407,1758031844187,-500.0,0.00024882,2]
[385774408,1758031844196,-500.0,0.00024882,2]
[385774409,1758031844205,-250.0,0.00024882,2]
[385774410,1758031844214,-534.09629382,0.00024882,2]
[385774411,1758031844223,-250.0,0.00024882,2]
[385774412,1758031844232,-250.0,0.00024882,2]
[385774413,1758031844242,-670.58624095,0.00024882,2]
[385774414,1758031844250,-250.0,0.00024882,2]
[385774415,1758031844259,-250.0,0.00024882,2]
[385774416,1758031844268,-533.44738639,0.00024882,2]
[385774417,1758031844277,-250.0,0.00024882,2]
[385774418,1758031844286,-250.0,0.00024882,2]
[385774419,1758031844296,-250.0,0.00024882,2]
[385774420,1758031844305,-250.0,0.00024882,2]
[385774421,1758031844314,-250.0,0.00024882,2]
[385774422,1758031844323,-200.0,0.00024882,2]
[385774423,1758031844332,-250.0,0.00024882,2]
[385774424,1758031844342,-250.0,0.00024882,2]
[385774425,1758031844351,-151.0,0.00024882,2]
[385774426,1758031844361,-151.0,0.00024882,2]
[385774427,1758031844371,-151.0,0.00024882,2]
[385774428,1758031844381,-151.0,0.00024882,2]
[385774429,1758031844390,-151.0,0.00024882,2]
[385774430,1758031844400,-151.0,0.00024882,2]
[385774431,1758031844409,-151.0,0.00024882,2]
[385774432,1758031844419,-151.0,0.00024882,2]
[385774433,1758031844428,-151.0,0.00024882,2]
[385774434,1758031844437,-151.0,0.00024882,2]
[385774435,1758031844446,-151.0,0.00024882,2]
[385774436,1758031844456,-151.0,0.00024882,2]
[385774437,1758031844465,-159.80894788,0.000249,2]
[385774438,1758031844474,-17165.73363686,0.000249,2]
[385774439,1758031844484,-500.0,0.000249,2]
[385774440,1758031844494,-500.0,0.000249,2]
[385774441,1758031844503,-481.15458238,0.00024933,2]
[385774442,1758031844512,-168.0,0.00024956,2]
[385774443,1758031844521,-9029.22744331,0.00025,2]
[385774444,1758031844539,-399.445445,0.00025,2]
[385774445,1758031844581,-13070.51193235,0.00025,2]
[385774446,1758031844674,-842.92918201,0.00025,2]
[385774447,1758031844685,-2134.23388315,0.00025,2]
[385774491,1758031845998,-46149.23094459,0.00025,2]
[385774493,1758031846008,-167.31,0.00025123,2]
[385774495,1758031846018,-168.0,0.00025125,2]
[385774497,1758031846028,-723.33381785,0.00025129,2]
[385774499,1758031846038,-168.0,0.00025138,2]
[385774501,1758031846048,-168.0,0.00025146,2]
[385774503,1758031846058,-150.0,0.00025149,7]
[385774505,1758031846067,-4225.0,0.00025174,2]
[385774507,1758031846077,-1481.75219389,0.00025199,2]
[385774508,1758031846086,-2595.18,0.00025289,2]
[385774510,1758031846096,-1260.0,0.00025299,2]
[385774512,1758031846106,-2039.0,0.00025299,2]
[385774514,1758031846116,-755.0,0.00025299,2]
[385774516,1758031846127,-3390.0,0.00025299,2]
[385774518,1758031846136,-568.0,0.00025299,2]
[385774519,1758031846146,-1303.0,0.00025299,2]
[385774521,1758031846155,-602.0,0.00025299,2]
[385774523,1758031846165,-1581.0,0.00025299,2]
[385774525,1758031846175,-819.0,0.00025299,2]
[385774527,1758031846184,-4171.0,0.00025299,2]
[385774529,1758031846194,-726.0,0.00025299,2]
[385774531,1758031846203,-168.0,0.00025328,2]
[385774533,1758031846213,-168.0,0.0002537,2]
[385774535,1758031846222,-180.99,0.00025394,2]
[385774537,1758031846232,-600.0,0.0002543,2]
[385774539,1758031846242,-200.0,0.0002543,2]
[385774540,1758031846252,-151.0,0.0002543,2]
[385774541,1758031846262,-332.0,0.00025447,2]
[385774542,1758031846273,-1000.0,0.00025448,2]
[385774543,1758031846283,-168.0,0.00025467,2]
[385774544,1758031846293,-159.39,0.0002551,2]
[385774546,1758031846303,-218.72,0.00025521,2]
[385774548,1758031846312,-164.72,0.00025526,2]
[385774549,1758031846323,-179.7,0.00025564,2]
[385774550,1758031846333,-168.0,0.00025838,2]
[385774551,1758031846342,-1481.7521938,0.00025919,2]
[385774552,1758031846352,-247.3930528,0.00025978,2]
[385774553,1758031846361,-151.0,0.00025978,2]
[385774554,1758031846372,-1545.01233526,0.00025996,2]
[385774555,1758031846382,-2000.0,0.00026,2]
[385774556,1758031846392,-168.0,0.00026012,2]
[385774557,1758031846402,-287.61899177,0.00026191,2]
[385774558,1758031846411,-412.54,0.00026196,2]
[385774559,1758031846421,-218.72,0.0002623,2]
[385774560,1758031846430,-322.6107,0.00026251,2]
[385774561,1758031846440,-2128.03,0.00026254,2]
[385774563,1758031846450,-1000.0,0.00026391,2]
[385774565,1758031846460,-168.0,0.00026499,2]
[385774567,1758031846471,-250.0,0.00026524,2]
[385774569,1758031846482,-151.0,0.00026526,2]
[385774570,1758031846492,-1000.0,0.00026627,2]
[385774572,1758031846501,-2500.0,0.00026627,2]